bitfinex/quotes_BTCUSD_20250129
["timestamp","ask_amount","ask_price","bid_price","bid_amount"]
[1738125272857,0.2756693,102230.0,102220.0,0.58030814]
[1738125273687,0.2756693,102230.0,102220.0,0.57630814]
[1738125274108,0.2766693,102230.0,102220.0,0.57630814]
[1738125274360,0.2766693,102230.0,102220.0,0.42956614]
[1738125274756,0.2766693,102230.0,102220.0,0.57630814]
[1738125275606,0.2766693,102230.0,102220.0,0.25430814]
[1738125276394,0.2756693,102230.0,102220.0,0.25430814]
[1738125276628,0.2756693,102230.0,102220.0,0.25530814]
[1738125281860,0.1289423,102230.0,102220.0,0.25530814]
[1738125282065,0.43099543,102230.0,102220.0,0.01132298]
[1738125282283,0.33363867,102230.0,102220.0,0.01132298]
[1738125282822,0.33363867,102230.0,102220.0,0.01032298]
[1738125283234,0.33463867,102230.0,102220.0,0.01032298]
[1738125283637,0.43199543,102230.0,102220.0,0.01032298]
[1738125285226,0.33463867,102230.0,102220.0,0.01032298]
[1738125287726,0.42257408,102230.0,102220.0,0.01032298]
[1738125290626,0.43222457,102230.0,102220.0,0.01032298]
[1738125293323,0.76062457,102230.0,102220.0,0.01032298]
[1738125294996,0.76062457,102230.0,102220.0,0.00532298]
[1738125296684,0.85798133,102230.0,102220.0,0.00532298]
[1738125298268,0.88098133,102230.0,102220.0,0.00532298]
[1738125298462,0.70258133,102230.0,102220.0,0.00532298]
[1738125301972,0.58222457,102230.0,102220.0,0.00532298]
[1738125303212,0.57257408,102230.0,102220.0,0.00532298]
[1738125305121,0.31830471,102230.0,102220.0,0.00532298]
[1738125305354,0.23580471,102230.0,102220.0,0.24930814]
[1738125308929,0.1478693,102230.0,102220.0,0.24930814]
[1738125309346,0.0011423,102230.0,102220.0,0.24930814]
[1738125309551,0.0011423,102230.0,102220.0,0.37210814]
[1738125309755,0.0011423,102230.0,102220.0,0.43007751]
[1738125310187,0.0011423,102230.0,102220.0,0.37210814]
[1738125312076,0.0011423,102230.0,102220.0,0.84997061]
[1738125312284,0.0011423,102230.0,102220.0,0.79200124]
[1738125312497,0.0011423,102230.0,102220.0,0.82244969]
[1738125313100,0.0001423,102230.0,102220.0,0.82244969]
[1738125313501,0.0001423,102230.0,102220.0,0.82344969]
[1738125313674,0.01002006,102230.0,102220.0,0.82344969]
[1738125313874,0.01002006,102230.0,102220.0,0.70064969]
[1738125314081,0.01002006,102230.0,102220.0,0.67020124]
[1738125315303,0.15674706,102230.0,102220.0,0.67020124]
[1738125315722,0.01002006,102230.0,102220.0,0.67020124]
[1738125316846,0.15674706,102230.0,102220.0,0.67020124]
[1738125317055,0.15674706,102230.0,102220.0,0.10356614]
[1738125317474,0.15674706,102230.0,102220.0,0.25030814]
[1738125321134,0.15674706,102230.0,102220.0,0.10356614]
[1738125321945,0.15674706,102230.0,102220.0,0.25030814]
[1738125323244,0.01002006,102230.0,102220.0,0.25030814]
[1738125323421,0.15674706,102230.0,102220.0,0.25030814]
[1738125324794,0.15674706,102230.0,102220.0,0.10356614]
[1738125326078,0.23954706,102230.0,102220.0,0.10356614]
[1738125326746,0.38488538,102230.0,102220.0,0.10356614]
[1738125327493,0.2296693,102230.0,102220.0,0.10356614]
[1738125329983,0.31760471,102230.0,102220.0,0.10356614]
[1738125331763,0.32765318,102230.0,102220.0,0.10356614]
[1738125333166,0.38562255,102230.0,102220.0,0.00632298]
[1738125333751,0.71402255,102230.0,102220.0,0.00632298]
[1738125333955,1.03157931,102230.0,102220.0,0.00632298]
[1738125336066,0.9436439,102230.0,102220.0,0.00632298]
[1738125338040,0.6152439,102230.0,102220.0,0.00632298]
[1738125339595,0.48483867,102230.0,102220.0,0.00632298]
[1738125339909,0.15674706,102230.0,102220.0,0.25030814]
[1738125340102,0.1468693,102230.0,102220.0,0.25030814]
[1738125340982,0.15674706,102230.0,102220.0,0.25030814]
[1738125341152,0.23481336,102230.0,102220.0,0.25030814]
[1738125341507,0.09796412,102230.0,102220.0,0.25030814]
[1738125341907,0.24469112,102230.0,102220.0,0.25030814]
[1738125342361,0.09796412,102230.0,102220.0,0.25030814]
[1738125342568,0.08808636,102230.0,102220.0,0.33080814]
[1738125344299,0.01002006,102230.0,102220.0,0.33844814]
[1738125345113,0.01002006,102230.0,102220.0,0.43634204]
[1738125346312,0.0001423,102230.0,102220.0,0.43634204]
[1738125346527,0.01002006,102230.0,102220.0,0.43634204]
[1738125346930,0.0001423,102230.0,102220.0,0.43634204]
[1738125352053,0.0001423,102230.0,102220.0,0.49431141]
[1738125352259,0.0001423,102230.0,102220.0,0.48614204]
[1738125352462,0.0001423,102230.0,102220.0,0.54411141]
[1738125352870,0.0001423,102230.0,102220.0,0.86611141]
[1738125354734,0.0001423,102230.0,102220.0,0.80814204]
[1738125354735,0.01002006,102230.0,102220.0,0.80814204]
[1738125356941,0.0001423,102230.0,102220.0,0.86611141]
[1738125359529,0.0001423,102230.0,102220.0,0.88604126]
[1738125359729,0.01002006,102230.0,102220.0,0.88604126]
[1738125360562,0.0001423,102230.0,102220.0,0.88604126]
[1738125361350,0.01002006,102230.0,102220.0,0.88604126]
[1738125361663,0.01002006,102230.0,102220.0,0.82807189]
[1738125362072,0.01002006,102230.0,102220.0,0.74757189]
[1738125362517,0.01002006,102230.0,102220.0,0.72764204]
[1738125362725,0.01002006,102230.0,102220.0,0.57994814]
[1738125362903,0.15674706,102230.0,102220.0,0.57994814]
[1738125363893,0.18603084,102230.0,102220.0,0.57994814]
[1738125364806,0.18603084,102230.0,102220.0,0.25794814]
[1738125365392,0.15674706,102230.0,102220.0,0.25794814]
[1738125367037,0.01002006,102230.0,102220.0,0.25794814]
[1738125371830,0.01002006,102230.0,102220.0,0.25030814]
[1738125372032,0.15674706,102230.0,102220.0,0.25794814]
[1738125372658,0.15674706,102230.0,102220.0,0.25030814]
[1738125372874,0.15674706,102230.0,102220.0,0.10356614]
[1738125373078,0.23774706,102230.0,102220.0,0.25030814]
[1738125373387,0.23774706,102230.0,102220.0,0.10356614]
[1738125373758,0.23774706,102230.0,102220.0,0.25030814]
[1738125374627,0.23774706,102230.0,102220.0,0.10356614]
[1738125374628,0.29571643,102230.0,102220.0,0.10356614]
[1738125374837,0.43056595,102230.0,102220.0,0.00632298]
[1738125375039,0.98993532,102230.0,102220.0,0.00632298]
[1738125375244,0.99993532,102230.0,102220.0,0.00632298]
[1738125375451,0.94196595,102230.0,102220.0,0.00632298]
[1738125375640,0.94196595,102230.0,102220.0,0.00532298]
[1738125376086,0.94296595,102230.0,102220.0,0.00532298]
[1738125376289,0.94296595,102230.0,102200.0,0.00029883]
[1738125376290,0.15,102220.0,102200.0,0.00029883]
[1738125376464,0.222356,102210.0,102200.0,0.09802588]
[1738125376694,0.28032537,102210.0,102200.0,0.09802588]
[1738125377093,0.222356,102210.0,102200.0,0.09802588]
[1738125378304,0.222356,102210.0,102200.0,0.10202477]
[1738125378736,0.223356,102210.0,102200.0,0.10202477]
[1738125380340,0.28132537,102210.0,102200.0,0.10202477]
[1738125380687,0.223356,102210.0,102200.0,0.10202477]
[1738125381904,0.147756,102210.0,102200.0,0.10202477]
[1738125382232,0.147756,102210.0,102200.0,0.24879577]
[1738125383059,0.147756,102210.0,102200.0,0.10202477]
[1738125383520,0.28092537,102210.0,102200.0,0.00478161]
[1738125383690,0.37828213,102210.0,102200.0,0.00478161]
[1738125384601,0.28092537,102210.0,102200.0,0.00478161]
[1738125384820,0.222956,102210.0,102200.0,0.10202477]
[1738125385031,0.147756,102210.0,102200.0,0.10202477]
[1738125388214,0.147756,102210.0,102200.0,0.24879577]
[1738125388693,0.147756,102210.0,102200.0,0.10202477]
[1738125391759,0.20572537,102210.0,102200.0,0.10202477]
[1738125391968,0.224856,102210.0,102200.0,0.10202477]
[1738125392173,0.147756,102210.0,102200.0,0.10202477]
[1738125395458,0.147756,102210.0,102200.0,0.24879577]
[1738125396146,0.001,102210.0,102200.0,0.24879577]
[1738125398322,0.615191,102220.0,102200.0,0.64017577]
[1738125398538,0.569522,102220.0,102210.0,0.09724316]
[1738125399056,0.62749137,102220.0,102210.0,0.10129706]
[1738125399598,0.6277902,102220.0,102210.0,0.10129706]
[1738125399803,0.72614696,102220.0,102210.0,0.0040539]
[1738125400421,0.146756,102210.0,102200.0,0.00078272]
[1738125400634,0.146756,102210.0,102200.0,0.09802588]
[1738125402024,0.146756,102210.0,102200.0,0.09902588]
[1738125405896,0.14705183,102220.0,102210.0,0.146756]
[1738125406117,0.14705183,102220.0,102210.0,0.24399916]
[1738125406527,0.14705183,102220.0,102210.0,0.09724316]
[1738125406756,0.14705183,102220.0,102210.0,0.24399916]
[1738125407060,0.01017659,102220.0,102210.0,0.24399916]
[1738125407182,0.08824289,102220.0,102210.0,0.24399916]
[1738125407388,0.09812065,102220.0,102210.0,0.24399916]
[1738125408225,0.09912065,102220.0,102210.0,0.24805335]
[1738125408603,0.24586265,102220.0,102210.0,0.24805335]
[1738125410105,0.51812335,102220.0,102210.0,0.00405419]
[1738125410311,0.146756,102210.0,102200.0,0.52610172]
[1738125410540,0.56765865,102220.0,102200.0,0.70654488]
[1738125410751,0.35359159,102220.0,102210.0,0.09724316]
[1738125411326,0.35259159,102220.0,102210.0,0.09724316]
[1738125411744,0.35359159,102220.0,102210.0,0.09724316]
[1738125411955,0.15791859,102220.0,102210.0,0.24399916]
[1738125412153,0.15691859,102220.0,102210.0,0.24399916]
[1738125412529,0.01117659,102220.0,102210.0,0.24399916]
[1738125415921,0.00129883,102220.0,102210.0,0.24399916]
[1738125416841,0.00129883,102220.0,102210.0,0.37109916]
[1738125417051,0.00129883,102220.0,102210.0,0.42906853]
[1738125417241,0.00129883,102220.0,102210.0,0.45949617]
[1738125417588,0.00129883,102220.0,102210.0,1.44199036]
[1738125418675,0.00029883,102220.0,102210.0,1.44199036]
[1738125419091,0.00029883,102220.0,102210.0,1.44299036]
[1738125420003,0.00029883,102220.0,102210.0,1.45288428]
[1738125420727,0.00029883,102220.0,102210.0,1.39491491]
[1738125421128,0.00029883,102220.0,102210.0,1.71691491]
[1738125422088,0.00029883,102220.0,102210.0,1.8051743]
[1738125422641,0.00029883,102220.0,102210.0,1.8053166]
[1738125423290,0.00029883,102220.0,102210.0,1.72108087]
[1738125425959,0.00029883,102220.0,102210.0,1.72888087]
[1738125426360,0.00029883,102220.0,102210.0,1.69845323]
[1738125430229,0.00029883,102220.0,102210.0,1.61905323]
[1738125431908,0.00029883,102220.0,102210.0,1.79051262]
[1738125433511,0.00029883,102220.0,102210.0,1.82089147]
[1738125434420,0.00029883,102220.0,102210.0,1.73263208]
[1738125435383,0.00029883,102220.0,102210.0,1.82089147]
[1738125440638,0.00029883,102220.0,102210.0,1.79054897]
[1738125441041,0.00029883,102220.0,102210.0,0.80805478]
[1738125442045,0.00029883,102220.0,102210.0,0.95805478]
[1738125454681,0.00029883,102220.0,102210.0,0.82715478]
[1738125477403,0.08109883,102220.0,102210.0,0.76907789]
[1738125477615,0.08109883,102220.0,102210.0,0.61907789]
[1738125479377,0.12879883,102220.0,102210.0,0.61907789]
[1738125479585,0.34333548,102220.0,102210.0,0.45478797]
[1738125479935,0.28541859,102220.0,102210.0,0.40238048]
[1738125480551,0.28541859,102220.0,102210.0,0.08038048]
[1738125481514,0.28541859,102220.0,102210.0,0.22713648]
[1738125481930,0.13867659,102220.0,102210.0,0.22713648]
[1738125482135,0.12879883,102220.0,102210.0,0.22713648]
[1738125482344,0.13867659,102220.0,102210.0,0.25759474]
[1738125482556,0.12879883,102220.0,102210.0,0.25759474]
[1738125483665,0.13867659,102220.0,102210.0,0.25759474]
[1738125484055,0.22662065,102220.0,102210.0,0.25759474]
[1738125485008,0.22662065,102220.0,102210.0,0.22713648]
[1738125486895,0.13867659,102220.0,102210.0,0.22713648]
[1738125487663,0.12879883,102220.0,102210.0,0.22713648]
[1738125488778,0.13867659,102220.0,102210.0,0.22713648]
[1738125489838,0.28541859,102220.0,102210.0,0.22713648]
[1738125490358,0.34333548,102220.0,102210.0,0.08038048]
[1738125493378,0.34333548,102220.0,102210.0,0.00516596]
[1738125493379,0.44028006,102220.0,102210.0,0.00516596]
[1738125493579,0.48831919,102220.0,102210.0,0.00516596]
[1738125493788,0.63831919,102220.0,102210.0,0.00516596]
[1738125494455,0.63831919,102220.0,102210.0,0.00416596]
[1738125494670,0.63931919,102220.0,102210.0,0.00416596]
[1738125495292,0.66231919,102220.0,102210.0,0.00416596]
[1738125496338,0.76956235,102220.0,102210.0,0.00416596]
[1738125496742,0.82747924,102220.0,102210.0,0.00416596]
[1738125496940,0.76956235,102220.0,102210.0,0.00416596]
[1738125497525,0.76856235,102220.0,102210.0,0.00416596]
[1738125497726,0.78119654,102220.0,102210.0,0.00516596]
[1738125498931,0.82911343,102220.0,102210.0,0.00516596]
[1738125499108,0.84911343,102220.0,102210.0,0.00516596]
[1738125503304,0.79119654,102220.0,102210.0,0.00516596]
[1738125503538,0.5540088,102220.0,102210.0,0.00516596]
[1738125503943,0.4040088,102220.0,102210.0,0.00516596]
[1738125504297,0.5540088,102220.0,102210.0,0.00516596]
[1738125505954,0.5340088,102220.0,102210.0,0.00516596]
[1738125506155,0.62163836,102220.0,102210.0,0.00516596]
[1738125506670,0.5941297,102220.0,102210.0,0.00516596]
[1738125508527,0.82172962,102220.0,102210.0,0.00516596]
[1738125508930,0.91005474,102220.0,102210.0,0.00516596]
[1738125509530,0.82242518,102220.0,102210.0,0.00516596]
[1738125509961,0.81242518,102220.0,102210.0,0.00516596]
[1738125510596,0.83242518,102220.0,102210.0,0.00516596]
[1738125511551,0.74410006,102220.0,102210.0,0.00516596]
[1738125511749,0.83242518,102220.0,102210.0,0.00516596]
[1738125513164,0.92005474,102220.0,102210.0,0.00516596]
[1738125515306,0.92035357,102220.0,102210.0,0.00516596]
[1738125515466,0.93035357,102220.0,102210.0,0.00516596]
[1738125516306,0.83272401,102220.0,102210.0,0.00516596]
[1738125517376,0.84272401,102220.0,102210.0,0.00516596]
[1738125517589,0.73439889,102220.0,102210.0,0.00516596]
[1738125517801,0.75439889,102220.0,102210.0,0.00516596]
[1738125518355,0.84272401,102220.0,102210.0,0.00516596]
[1738125518570,0.92282401,102220.0,102210.0,0.00516596]
[1738125518808,0.50679897,102220.0,102210.0,0.00516596]
[1738125519967,0.52979897,102220.0,102210.0,0.00516596]
[1738125521202,0.72536725,102220.0,102210.0,0.00516596]
[1738125522216,0.63704213,102220.0,102210.0,0.00516596]
[1738125523359,0.72467763,102220.0,102210.0,0.00516596]
[1738125523770,0.82203439,102220.0,102210.0,0.00516596]
[1738125526909,0.71479123,102220.0,102210.0,0.00516596]
[1738125533394,0.62715573,102220.0,102210.0,0.00516596]
[1738125534757,0.42100014,102220.0,102210.0,0.00516596]
[1738125540968,0.39800014,102220.0,102210.0,0.00516596]
[1738125544454,0.39800014,102220.0,102210.0,0.00668596]
[1738125546731,0.425608,102220.0,102210.0,0.00668596]
[1738125552046,0.01317659,102220.0,102210.0,0.37688512]
[1738125553758,0.01017659,102220.0,102210.0,0.37588512]
[1738125554169,0.01317659,102220.0,102210.0,0.37588512]
[1738125556963,0.00329883,102220.0,102210.0,0.37588512]
[1738125557523,0.01317659,102220.0,102210.0,0.37588512]
[1738125559020,0.00329883,102220.0,102210.0,0.37588512]
[1738125559259,0.01317659,102220.0,102210.0,0.37588512]
[1738125561757,0.00329883,102220.0,102210.0,0.37588512]
[1738125561969,0.01317659,102220.0,102210.0,0.37588512]
[1738125567886,0.49703738,102220.0,102210.0,0.00568596]
[1738125568088,0.52003738,102220.0,102210.0,0.00568596]
[1738125569815,0.84843738,102220.0,102210.0,0.00568596]
[1738125571814,0.88174073,102220.0,102210.0,0.00568596]
[1738125572099,0.71634776,102220.0,102210.0,0.00568596]
[1738125573345,0.71634776,102220.0,102210.0,0.24968512]
[1738125573718,0.71634776,102220.0,102210.0,0.10292912]
[1738125575674,0.71634776,102220.0,102210.0,0.24968512]
[1738125575675,0.38794776,102220.0,102210.0,0.24968512]
[1738125576016,0.23794776,102220.0,102210.0,0.24968512]
[1738125578570,0.15004083,102220.0,102210.0,0.24968512]
[1738125579972,0.15004083,102220.0,102210.0,0.10292912]
[1738125582875,0.33569056,102220.0,102210.0,0.00568596]
[1738125583760,0.2383338,102220.0,102210.0,0.00568596]
[1738125584860,0.32624073,102220.0,102210.0,0.00568596]
[1738125585702,0.23794776,102220.0,102210.0,0.00568596]
[1738125586701,0.29590093,102220.0,102210.0,0.00568596]
[1738125587746,0.6301541,102220.0,102210.0,0.00568596]
[1738125587959,0.72751086,102220.0,102210.0,0.00568596]
[1738125589281,0.73731016,102220.0,102210.0,0.00568596]
[1738125590578,0.70973091,102220.0,102210.0,0.00568596]
[1738125590935,0.73273091,102220.0,102210.0,0.00568596]
[1738125591167,0.83997407,102220.0,102210.0,0.00568596]
[1738125591872,0.82997407,102220.0,102210.0,0.00568596]
[1738125592346,0.83997407,102220.0,102210.0,0.00568596]
[1738125592878,0.82997407,102220.0,102210.0,0.00568596]
[1738125593280,0.63537415,102220.0,102210.0,0.00568596]
[1738125593854,0.54746722,102220.0,102210.0,0.00568596]
[1738125596219,0.52446722,102220.0,102210.0,0.00568596]
[1738125603374,0.52446722,102220.0,102210.0,0.0016623]
[1738125603574,0.52446722,102220.0,102210.0,0.00575729]
[1738125603771,0.52446722,102220.0,102210.0,0.0016623]
[1738125603986,0.52446722,102220.0,102210.0,0.00575729]
[1738125604202,0.52446722,102220.0,102210.0,0.0016623]
[1738125604339,0.52446722,102220.0,102210.0,0.00575729]
[1738125605765,0.62182398,102220.0,102210.0,0.00575729]
[1738125607602,0.75206714,102220.0,102210.0,0.00575729]
[1738125610756,0.77968549,102220.0,102210.0,0.00575729]
[1738125614283,0.76968549,102220.0,102210.0,0.00575729]
[1738125614547,0.84765821,102220.0,102210.0,0.00575729]
[1738125615137,0.78968549,102220.0,102210.0,0.00575729]
[1738125615870,0.78668549,102220.0,102210.0,0.00575729]
[1738125616000,0.84465821,102220.0,102210.0,0.00575729]
[1738125616217,0.83265821,102220.0,102210.0,0.00675729]
[1738125616511,0.93575821,102220.0,102210.0,0.00675729]
[1738125616733,0.93575821,102220.0,102210.0,8e-08]
[1738125616998,0.93575821,102220.0,102210.0,1.4e-07]
[1738125617234,0.445756,102210.0,102200.0,0.00078272]
[1738125617453,0.75630136,102210.0,102200.0,0.00078272]
[1738125618271,0.75630136,102210.0,102200.0,0.00379301]
[1738125619263,0.75630136,102210.0,102200.0,0.00284299]
[1738125620323,0.81427408,102210.0,102200.0,0.00284299]
[1738125620896,0.75630136,102210.0,102200.0,0.00298529]
[1738125622736,0.76330136,102210.0,102200.0,0.00398529]
[1738125626280,0.78272377,102210.0,102200.0,0.00398529]
[1738125626487,0.84069649,102210.0,102200.0,0.00398529]
[1738125626962,0.78272377,102210.0,102200.0,0.00398529]
[1738125629615,0.84069649,102210.0,102200.0,0.00398529]
[1738125629839,0.78272377,102210.0,102200.0,0.00398529]
[1738125630022,0.80272377,102210.0,102200.0,0.00398529]
[1738125630224,0.78272377,102210.0,102200.0,0.00398529]
[1738125630635,0.84069649,102210.0,102200.0,0.00398529]
[1738125630802,0.78272377,102210.0,102200.0,0.00398529]
[1738125631665,0.84069649,102210.0,102200.0,0.00398529]
[1738125631868,0.84069649,102210.0,102200.0,2.9e-07]
[1738125632082,0.84069649,102210.0,102200.0,0.00275033]
[1738125632532,0.84069649,102210.0,102200.0,3.3e-07]
[1738125632702,0.043,102200.0,102190.0,0.00029883]
[1738125632837,0.75771637,102200.0,102190.0,0.00078308]
[1738125635588,0.76371637,102200.0,102190.0,0.00078308]
[1738125637481,0.80290237,102200.0,102190.0,0.00078308]
[1738125640934,0.74492965,102200.0,102190.0,0.00078308]
[1738125642457,0.67402965,102200.0,102190.0,0.00078308]
[1738125643774,0.68385732,102200.0,102190.0,0.00078308]
[1738125646267,0.65385732,102200.0,102190.0,0.00078308]
[1738125646469,0.25975739,102200.0,102190.0,0.12748308]
[1738125647081,0.43275739,102200.0,102190.0,0.12748308]
[1738125647292,0.49073011,102200.0,102190.0,0.12748308]
[1738125648073,0.57849623,102200.0,102190.0,0.12748308]
[1738125649645,0.52052351,102200.0,102190.0,0.12748308]
[1738125649855,0.43955079,102200.0,102190.0,0.12748308]
[1738125650058,0.40036479,102200.0,102190.0,0.12748308]
[1738125650575,0.45833751,102200.0,102190.0,0.12748308]
[1738125650804,0.40036479,102200.0,102190.0,0.12748308]
[1738125651585,0.45833751,102200.0,102190.0,0.12748308]
[1738125651788,0.40036479,102200.0,102190.0,0.12748308]
[1738125652315,0.45833751,102200.0,102190.0,0.12748308]
[1738125653211,0.37057139,102200.0,102190.0,0.12748308]
[1738125653465,0.156,102200.0,102190.0,0.27426808]
[1738125653674,0.006,102200.0,102190.0,0.37151124]
[1738125654056,0.006,102200.0,102190.0,0.37414261]
[1738125654259,0.43051495,102210.0,102190.0,0.37414261]
[1738125654487,0.58051495,102210.0,102200.0,0.272471]
[1738125655032,0.58051495,102210.0,102200.0,0.27507141]
[1738125655233,0.58051495,102210.0,102200.0,0.12830041]
[1738125655752,0.58351495,102210.0,102200.0,0.12830041]
[1738125656564,0.49574883,102210.0,102200.0,0.12830041]
[1738125657623,0.49274883,102210.0,102200.0,0.12830041]
[1738125658366,0.64807831,102210.0,102200.0,0.12830041]
[1738125658514,0.67107831,102210.0,102200.0,0.12830041]
[1738125659496,0.67107831,102210.0,102200.0,0.05130041]
[1738125659697,0.67407831,102210.0,102200.0,0.05130041]
[1738125660443,0.67407831,102210.0,102200.0,0.00260041]
[1738125660847,0.67107831,102210.0,102200.0,0.00260041]
[1738125661034,0.67407831,102210.0,102200.0,0.00260041]
[1738125661745,0.83929419,102210.0,102200.0,0.00260041]
[1738125661967,0.78132147,102210.0,102200.0,0.00260041]
[1738125662804,0.77132147,102210.0,102200.0,0.00260041]
[1738125663203,0.57672155,102210.0,102200.0,0.00260041]
[1738125664617,0.49574883,102210.0,102200.0,0.12750041]
[1738125664834,0.49574883,102210.0,102200.0,0.37151457]
[1738125665044,0.15329883,102210.0,102200.0,0.37151457]
[1738125665465,0.01317659,102210.0,102200.0,0.42948729]
[1738125666084,0.01317659,102210.0,102200.0,0.37151457]
[1738125667026,0.01017659,102210.0,102200.0,0.37151457]
[1738125667849,0.01017659,102210.0,102200.0,0.37165687]
[1738125671730,0.01017659,102210.0,102200.0,0.36905646]
[1738125675088,0.15693259,102210.0,102200.0,0.36905646]
[1738125676697,0.15693259,102210.0,102200.0,0.22228546]
[1738125677026,0.32000191,102210.0,102200.0,0.0001423]
[1738125677358,0.47000191,102210.0,102200.0,0.0001423]
[1738125677684,0.79840191,102210.0,102200.0,0.0001423]
[1738125678516,0.80140191,102210.0,102200.0,0.0001423]
[1738125678838,0.79840191,102210.0,102200.0,0.0001423]
[1738125680144,0.80140191,102210.0,102200.0,0.0001423]
[1738125680997,0.93519953,102210.0,102200.0,0.0001423]
[1738125681431,0.79815613,102210.0,102190.0,0.00074883]
[1738125681631,0.23506862,102200.0,102190.0,0.00074883]
[1738125683147,0.33242538,102200.0,102190.0,0.00074883]
[1738125683366,0.50542538,102200.0,102190.0,0.00074883]
[1738125684804,0.50842538,102200.0,102190.0,0.00074883]
[1738125686803,0.50838058,102200.0,102190.0,0.00074883]
[1738125691062,0.2997262,102200.0,102190.0,0.08264883]
[1738125691266,0.2997262,102200.0,102190.0,0.13104883]
[1738125692571,0.35769938,102200.0,102190.0,0.13104883]
[1738125692844,0.35469938,102200.0,102190.0,0.13104883]
[1738125693022,0.35769938,102200.0,102190.0,0.13104883]
[1738125693243,0.35769938,102200.0,102190.0,0.13367114]
[1738125693838,0.2997262,102200.0,102190.0,0.13367114]
[1738125694210,0.35769938,102200.0,102190.0,0.13367114]
[1738125694611,0.2997262,102200.0,102190.0,0.13367114]
[1738125695062,0.3389012,102200.0,102190.0,0.13367114]
[1738125700973,0.3389012,102200.0,102190.0,0.00337114]
[1738125701370,0.42724217,102200.0,102190.0,0.00337114]
[1738125702138,0.45024217,102200.0,102190.0,0.00337114]
[1738125702583,0.54759893,102200.0,102190.0,0.00337114]
[1738125702994,0.450541,102200.0,102190.0,0.00337114]
[1738125703959,0.447541,102200.0,102190.0,0.00337114]
[1738125704175,0.526741,102200.0,102190.0,0.00337114]
[1738125705048,0.54602246,102200.0,102190.0,0.00337114]
[1738125708120,0.63383362,102200.0,102190.0,0.00337114]
[1738125708549,0.73119038,102200.0,102190.0,0.00337114]
[1738125709320,0.82843354,102200.0,102190.0,0.00337114]
[1738125709529,0.88413354,102200.0,102190.0,0.00337114]
[1738125709729,0.89413354,102200.0,102190.0,0.00337114]
[1738125710164,0.90413354,102200.0,102190.0,0.00337114]
[1738125710369,0.89413354,102200.0,102190.0,0.00337114]
[1738125715044,0.80632238,102200.0,102190.0,0.00337114]
[1738125716548,0.83398497,102200.0,102190.0,0.00337114]
[1738125717955,0.89198675,102200.0,102190.0,0.00337114]
[1738125718162,0.83398497,102200.0,102190.0,0.00337114]
[1738125731975,0.57172821,102200.0,102190.0,0.00337114]
[1738125732180,0.35802681,102200.0,102190.0,0.00337114]
[1738125732518,0.41602859,102200.0,102190.0,0.00337114]
[1738125732696,0.43902859,102200.0,102190.0,0.00337114]
[1738125734212,0.54627175,102200.0,102190.0,0.00337114]
[1738125734360,0.64362851,102200.0,102190.0,0.00337114]
[1738125734561,0.73151312,102200.0,102190.0,0.00337114]
[1738125734788,0.5269132,102200.0,102190.0,0.00337114]
[1738125740772,0.69215814,102200.0,102190.0,0.00337114]
[1738125740985,0.76915814,102200.0,102190.0,0.00337114]
[1738125741203,0.75915814,102200.0,102190.0,0.00337114]
[1738125742467,0.77915814,102200.0,102190.0,0.00337114]
[1738125742892,0.8765149,102200.0,102190.0,0.00337114]
[1738125743637,0.78863029,102200.0,102190.0,0.00337114]
[1738125751934,0.59449034,102190.0,102180.0,0.46115297]
[1738125752143,0.7404335,102190.0,102180.0,0.42867169]
[1738125752282,0.83779026,102190.0,102180.0,0.42867169]
[1738125753253,0.83779026,102190.0,102180.0,0.43128703]
[1738125754218,0.77978848,102190.0,102180.0,0.43128703]
[1738125754738,0.78578848,102190.0,102180.0,0.43128703]
[1738125756111,0.79557001,102190.0,102180.0,0.43128703]
[1738125757657,0.81516066,102190.0,102180.0,0.43128703]
[1738125759396,0.87316244,102190.0,102180.0,0.37256803]
[1738125759599,0.87316244,102190.0,102180.0,0.35299503]
[1738125759802,0.81516066,102190.0,102180.0,0.33342203]
[1738125760184,0.87316244,102190.0,102180.0,0.23555703]
[1738125760386,0.85316244,102190.0,102180.0,0.23555703]
[1738125760569,0.85316244,102190.0,102180.0,0.17570933]
[1738125760709,0.95626244,102190.0,102180.0,0.02973348]
[1738125760921,0.95626244,102190.0,102180.0,0.02697583]
[1738125761248,0.446214,102170.0,102160.0,4.9e-07]
[1738125761406,0.8242334,102170.0,102160.0,7.3e-07]
[1738125761628,0.8042334,102170.0,102160.0,6e-07]
[1738125761874,0.339828,102160.0,102150.0,0.00029883]
[1738125762168,0.6110765,102160.0,102150.0,0.00078771]
[1738125762514,0.61401104,102160.0,102150.0,0.00078771]
[1738125762725,0.7113678,102160.0,102150.0,0.00078771]
[1738125763191,0.7173678,102160.0,102150.0,0.00078771]
[1738125763981,0.7993678,102160.0,102150.0,0.00078771]
[1738125764224,0.7993678,102160.0,102150.0,7.1e-07]
[1738125765911,0.88707778,102160.0,102150.0,7.1e-07]
[1738125768613,0.86707778,102160.0,102150.0,7.1e-07]
[1738125768865,0.51678188,102150.0,102140.0,1e-08]
[1738125769082,0.7113818,102150.0,102140.0,0.00048949]
[1738125769291,0.7113818,102150.0,102140.0,0.00316284]
[1738125769496,0.7113818,102150.0,102140.0,0.00048949]
[1738125769886,0.6913818,102150.0,102140.0,0.0031776]
[1738125770098,0.7113818,102150.0,102140.0,0.00048949]
[1738125770312,0.7113818,102150.0,102140.0,0.0031776]
[1738125770509,0.7113818,102150.0,102140.0,0.00048949]
[1738125770711,0.7113818,102150.0,102140.0,0.0031776]
[1738125770915,0.7113818,102150.0,102140.0,0.0004003]
[1738125771116,0.7113818,102150.0,102140.0,0.00308841]
[1738125771324,0.7203818,102150.0,102140.0,0.0004003]
[1738125771471,0.7303818,102150.0,102140.0,0.00308841]
[1738125771692,0.7303818,102150.0,102140.0,0.0004003]
[1738125771896,0.7303818,102150.0,102140.0,0.00308841]
[1738125772123,0.7203818,102150.0,102140.0,0.0004003]
[1738125772272,0.7303818,102150.0,102140.0,0.00308841]
[1738125772477,0.7303818,102150.0,102140.0,0.0004003]
[1738125772679,0.7303818,102150.0,102140.0,0.0005427]
[1738125772886,0.7303818,102150.0,102140.0,0.00323081]
[1738125773084,0.72968096,102150.0,102140.0,0.0005427]
[1738125773339,0.74968096,102150.0,102140.0,0.00323081]
[1738125773564,0.74968096,102150.0,102140.0,0.0005427]
[1738125773767,0.72968096,102150.0,102140.0,0.0499327]
[1738125774012,0.81739094,102150.0,102140.0,0.04993283]
[1738125774266,0.83739094,102150.0,102140.0,0.04993283]
[1738125774709,0.81739094,102150.0,102140.0,0.04993283]
[1738125775092,0.83739094,102150.0,102140.0,0.04993283]
[1738125775419,0.81739094,102150.0,102140.0,0.04993283]
[1738125775574,0.83739094,102150.0,102140.0,0.04993283]
[1738125775781,0.81739094,102150.0,102140.0,0.04993283]
[1738125776015,0.82698418,102150.0,102140.0,0.04993283]
[1738125777127,0.7392742,102150.0,102140.0,0.04993283]
[1738125779150,0.7784762,102150.0,102140.0,0.04993283]
[1738125779934,0.7984762,102150.0,102140.0,0.04993283]
[1738125780133,0.7984762,102150.0,102140.0,0.00323283]
[1738125780294,0.7784762,102150.0,102140.0,0.00323283]
[1738125780494,0.7984762,102150.0,102140.0,0.00323283]